[Event "Titled Tuesday Blitz January 10 Late 2023"]
[White "Khandelwal, Ankush"]
[Black "Muhammad, Shahzeb"]
[WhiteFideId "413470"]
[BlackFideId "7804806"]
[WhiteElo "2205"]
[BlackElo "1853"]
[Result "1-0"]
[Round "11"]
[TimeControl "180+2"]
[Date "2023.01.10"]
[WhiteClock "0:01:55"]
[BlackClock "0:01:42"]

1. e4 {[%clk 0:00:00]}  d5 {[%clk 0:00:00]} 2. exd5 {[%clk 0:02:59]}  Nf6 {[%clk 0:02:57]} 3. d4 {[%clk 0:02:59]}  Nxd5 {[%clk 0:02:58]} 4. c4 {[%clk 0:02:58]}  Nb6 {[%clk 0:02:58]} 5. Nc3 {[%clk 0:02:58]}  e5 {[%clk 0:02:59]} 6. d5 {[%clk 0:02:55]}  Bb4 {[%clk 0:02:59]} 7. Nf3 {[%clk 0:02:47]}  O-O {[%clk 0:02:57]} 8. Be2 {[%clk 0:02:42]}  e4 {[%clk 0:02:54]} 9. Nd4 {[%clk 0:02:39]}  N8d7 {[%clk 0:02:50]} 10. O-O {[%clk 0:02:39]}  Ne5 {[%clk 0:02:42]} 11. Nxe4 {[%clk 0:02:38]}  f5 {[%clk 0:02:42]} 12. Ng5 {[%clk 0:02:36]}  Be7 {[%clk 0:02:36]} 13. Nge6 {[%clk 0:02:34]}  Bxe6 {[%clk 0:02:23]} 14. Nxe6 {[%clk 0:02:31]}  Qd6 {[%clk 0:02:22]} 15. c5 {[%clk 0:02:31]}  Qxd5 {[%clk 0:02:23]} 16. Nxf8 {[%clk 0:02:29]}  Qxc5 {[%clk 0:02:20]} 17. Ne6 {[%clk 0:02:20]}  Qc6 {[%clk 0:02:07]} 18. Qb3 {[%clk 0:02:16]}  Nec4 {[%clk 0:02:06]} 19. Nd4 {[%clk 0:02:09]}  Qd5 {[%clk 0:01:50]} 20. Nxf5 {[%clk 0:02:01]}  Bf8 {[%clk 0:01:48]} 21. Ne3 {[%clk 0:02:00]}  Nxe3 {[%clk 0:01:43]} 22. Bxe3 {[%clk 0:01:54]}  Qxb3 {[%clk 0:01:42]} 23. axb3 {[%clk 0:01:55]} 1-0


[Site "https://www.chess.com"]

[Event "Titled Tuesday Blitz January 10 Late 2023"]
[White "Szyszylo, Rafal"]
[Black "Torres Dominguez, David"]
[WhiteFideId "1109626"]
[BlackFideId "2220857"]
[WhiteElo "2091"]
[BlackElo "1994"]
[Result "1-0"]
[Round "11"]
[TimeControl "180+2"]
[Date "2023.01.10"]
[WhiteClock "0:00:05"]
[BlackClock "0:00:01"]

1. e4 {[%clk 0:00:00]}  Nc6 {[%clk 0:00:00]} 2. Nf3 {[%clk 0:02:59]}  e5 {[%clk 0:02:58]} 3. Bc4 {[%clk 0:02:58]}  Bc5 {[%clk 0:02:56]} 4. d3 {[%clk 0:02:57]}  Nf6 {[%clk 0:02:55]} 5. Nbd2 {[%clk 0:02:57]}  d6 {[%clk 0:02:52]} 6. c3 {[%clk 0:02:52]}  a6 {[%clk 0:02:51]} 7. Bb3 {[%clk 0:02:50]}  Ba7 {[%clk 0:02:49]} 8. O-O {[%clk 0:02:49]}  h6 {[%clk 0:02:48]} 9. Re1 {[%clk 0:02:48]}  g5 {[%clk 0:02:47]} 10. d4 {[%clk 0:02:47]}  g4 {[%clk 0:02:46]} 11. dxe5 {[%clk 0:02:28]}  dxe5 {[%clk 0:02:45]} 12. Nh4 {[%clk 0:02:26]}  h5 {[%clk 0:02:43]} 13. Nf5 {[%clk 0:02:22]}  h4 {[%clk 0:02:42]} 14. g3 {[%clk 0:02:14]}  Bxf5 {[%clk 0:02:37]} 15. exf5 {[%clk 0:01:37]}  hxg3 {[%clk 0:01:43]} 16. hxg3 {[%clk 0:01:35]}  Qd7 {[%clk 0:01:43]} 17. Ne4 {[%clk 0:01:35]}  Qxf5 {[%clk 0:01:43]} 18. Nxf6+ {[%clk 0:01:14]}  Qxf6 {[%clk 0:01:35]} 19. Be3 {[%clk 0:00:58]}  Bxe3 {[%clk 0:01:35]} 20. Rxe3 {[%clk 0:00:56]}  Qg6 {[%clk 0:01:01]} 21. Bd5 {[%clk 0:00:57]}  O-O-O {[%clk 0:00:57]} 22. Qb3 {[%clk 0:00:51]}  Qh5 {[%clk 0:00:52]} 23. Bg2 {[%clk 0:00:42]}  Qh2+ {[%clk 0:00:41]} 24. Kf1 {[%clk 0:00:27]}  Qh5 {[%clk 0:00:34]} 25. Rae1 {[%clk 0:00:27]}  Rd6 {[%clk 0:00:35]} 26. Ke2 {[%clk 0:00:25]}  Rhd8 {[%clk 0:00:30]} 27. Kf1 {[%clk 0:00:19]}  f6 {[%clk 0:00:24]} 28. a4 {[%clk 0:00:15]}  Qh2 {[%clk 0:00:24]} 29. Qc2 {[%clk 0:00:14]}  Rh8 {[%clk 0:00:16]} 30. Qf5+ {[%clk 0:00:13]}  Kb8 {[%clk 0:00:08]} 31. b4 {[%clk 0:00:13]}  Qh6 {[%clk 0:00:06]} 32. b5 {[%clk 0:00:13]}  axb5 {[%clk 0:00:06]} 33. axb5 {[%clk 0:00:12]}  Na5 {[%clk 0:00:06]} 34. Qb1 {[%clk 0:00:13]}  Rhd8 {[%clk 0:00:07]} 35. Qb4 {[%clk 0:00:10]}  b6 {[%clk 0:00:05]} 36. Qe4 {[%clk 0:00:10]}  Kc8 {[%clk 0:00:05]} 37. c4 {[%clk 0:00:09]}  Kd7 {[%clk 0:00:02]} 38. c5 {[%clk 0:00:07]}  bxc5 {[%clk 0:00:01]} 39. Qa4 {[%clk 0:00:07]}  Ke7 {[%clk 0:00:01]} 40. Qxa5 {[%clk 0:00:05]}  R8d7 {[%clk 0:00:01]} 41. Qa3 {[%clk 0:00:05]} 1-0


[Site "https://www.chess.com"]

[Event "Titled Tuesday Blitz January 10 Late 2023"]
[White "Floresvillar Gonzalez, Luis Migu"]
[Black "Dedona, Mark"]
[WhiteFideId "5100542"]
[BlackFideId "30920256"]
[WhiteElo "2043"]
[BlackElo "1662"]
[Result "1-0"]
[Round "11"]
[TimeControl "180+2"]
[Date "2023.01.10"]
[WhiteClock "0:00:18"]
[BlackClock "0:00:27"]

1. d4 {[%clk 0:00:00]}  Nf6 {[%clk 0:00:00]} 2. c3 {[%clk 0:02:58]}  e6 {[%clk 0:02:59]} 3. Bg5 {[%clk 0:02:57]}  h6 {[%clk 0:02:59]} 4. Bh4 {[%clk 0:02:56]}  Be7 {[%clk 0:02:58]} 5. Nd2 {[%clk 0:02:55]}  d5 {[%clk 0:02:56]} 6. e3 {[%clk 0:02:55]}  c5 {[%clk 0:02:56]} 7. Bd3 {[%clk 0:02:55]}  cxd4 {[%clk 0:02:54]} 8. exd4 {[%clk 0:02:54]}  Nc6 {[%clk 0:02:53]} 9. Ngf3 {[%clk 0:02:54]}  Nh5 {[%clk 0:02:54]} 10. Bxe7 {[%clk 0:02:53]}  Qxe7 {[%clk 0:02:53]} 11. O-O {[%clk 0:02:52]}  O-O {[%clk 0:02:53]} 12. Re1 {[%clk 0:02:46]}  Nf4 {[%clk 0:02:51]} 13. Bf1 {[%clk 0:02:45]}  f6 {[%clk 0:02:51]} 14. g3 {[%clk 0:02:44]}  Ng6 {[%clk 0:02:50]} 15. Qb3 {[%clk 0:02:44]}  a6 {[%clk 0:02:49]} 16. a4 {[%clk 0:02:34]}  Rb8 {[%clk 0:02:42]} 17. a5 {[%clk 0:02:33]}  Bd7 {[%clk 0:02:41]} 18. Qc2 {[%clk 0:02:31]}  Qd6 {[%clk 0:02:34]} 19. Qxg6 {[%clk 0:02:25]}  f5 {[%clk 0:02:30]} 20. Qh5 {[%clk 0:02:23]}  Be8 {[%clk 0:02:20]} 21. Qh3 {[%clk 0:02:07]}  Rf6 {[%clk 0:02:15]} 22. Ne5 {[%clk 0:02:06]}  Ne7 {[%clk 0:01:58]} 23. f4 {[%clk 0:02:05]}  g5 {[%clk 0:01:48]} 24. fxg5 {[%clk 0:02:01]}  hxg5 {[%clk 0:01:47]} 25. Bd3 {[%clk 0:01:53]}  Kg7 {[%clk 0:01:47]} 26. Rf1 {[%clk 0:01:51]}  Bg6 {[%clk 0:01:43]} 27. Rae1 {[%clk 0:01:49]}  Rh8 {[%clk 0:01:36]} 28. Qg2 {[%clk 0:01:48]}  Be8 {[%clk 0:01:34]} 29. Rf2 {[%clk 0:01:46]}  Rfh6 {[%clk 0:01:35]} 30. Ndf3 {[%clk 0:01:38]}  Kf6 {[%clk 0:01:32]} 31. Qf1 {[%clk 0:01:32]}  Bh5 {[%clk 0:01:26]} 32. Be2 {[%clk 0:01:21]}  Ng6 {[%clk 0:01:24]} 33. Nxg6 {[%clk 0:01:04]}  Bxg6 {[%clk 0:01:11]} 34. Ne5 {[%clk 0:01:01]}  Kg7 {[%clk 0:01:07]} 35. Bd3 {[%clk 0:00:58]}  g4 {[%clk 0:01:00]} 36. Qe2 {[%clk 0:00:47]}  Bf7 {[%clk 0:00:59]} 37. Nxf7 {[%clk 0:00:45]}  Qxg3+ {[%clk 0:00:40]} 38. Rg2 {[%clk 0:00:40]}  Rxh2 {[%clk 0:00:39]} 39. Rxg3 {[%clk 0:00:33]}  Rh1+ {[%clk 0:00:40]} 40. Kf2 {[%clk 0:00:30]}  R8h2+ {[%clk 0:00:40]} 41. Rg2 {[%clk 0:00:30]}  Kxf7 {[%clk 0:00:40]} 42. Qxe6+ {[%clk 0:00:30]}  Kg7 {[%clk 0:00:36]} 43. Qe7+ {[%clk 0:00:25]}  Kg6 {[%clk 0:00:36]} 44. Bxf5+ {[%clk 0:00:23]}  Kxf5 {[%clk 0:00:35]} 45. Re5+ {[%clk 0:00:22]}  Kg6 {[%clk 0:00:28]} 46. Rg5+ {[%clk 0:00:21]}  Kh6 {[%clk 0:00:27]} 47. Qg7# {[%clk 0:00:18]} 1-0


[Site "https://www.chess.com"]

[Event "Titled Tuesday Blitz January 10 Late 2023"]
[White "Rodrigues, Leonardo De Miranda"]
[Black "Vasques, Antonio Pedro Freixial"]
[WhiteFideId "2108658"]
[BlackFideId "1908332"]
[WhiteElo "2112"]
[BlackElo "2214"]
[Result "0-1"]
[Round "11"]
[TimeControl "180+2"]
[Date "2023.01.10"]
[WhiteClock "0:00:05"]
[BlackClock "0:00:09"]

1. d4 {[%clk 0:00:00]}  d5 {[%clk 0:00:00]} 2. Nf3 {[%clk 0:03:00]}  Nf6 {[%clk 0:02:55]} 3. g3 {[%clk 0:02:59]}  Bf5 {[%clk 0:02:51]} 4. Bg2 {[%clk 0:02:59]}  e6 {[%clk 0:02:40]} 5. O-O {[%clk 0:02:56]}  Be7 {[%clk 0:02:40]} 6. c4 {[%clk 0:02:54]}  a6 {[%clk 0:02:40]} 7. Qb3 {[%clk 0:02:52]}  Ra7 {[%clk 0:02:39]} 8. Nc3 {[%clk 0:02:51]}  c6 {[%clk 0:02:39]} 9. a4 {[%clk 0:02:49]}  O-O {[%clk 0:02:39]} 10. a5 {[%clk 0:02:47]}  Nbd7 {[%clk 0:02:38]} 11. Rd1 {[%clk 0:02:45]}  Ne4 {[%clk 0:02:28]} 12. Bf4 {[%clk 0:02:45]}  g5 {[%clk 0:02:26]} 13. Be3 {[%clk 0:02:34]}  Bg6 {[%clk 0:02:05]} 14. Nd2 {[%clk 0:02:33]}  f5 {[%clk 0:01:57]} 15. cxd5 {[%clk 0:02:21]}  Nxc3 {[%clk 0:01:51]} 16. bxc3 {[%clk 0:02:17]}  cxd5 {[%clk 0:01:47]} 17. f4 {[%clk 0:02:10]}  b5 {[%clk 0:01:41]} 18. axb6 {[%clk 0:01:48]}  Qxb6 {[%clk 0:01:39]} 19. Qxb6 {[%clk 0:01:44]}  Nxb6 {[%clk 0:01:38]} 20. Rdb1 {[%clk 0:01:42]}  Bd8 {[%clk 0:01:39]} 21. fxg5 {[%clk 0:01:36]}  f4 {[%clk 0:01:22]} 22. gxf4 {[%clk 0:01:33]}  Bxb1 {[%clk 0:01:16]} 23. Rxb1 {[%clk 0:01:21]}  a5 {[%clk 0:01:16]} 24. Nb3 {[%clk 0:01:21]}  a4 {[%clk 0:01:16]} 25. Nc5 {[%clk 0:01:07]}  Kf7 {[%clk 0:01:01]} 26. Bh3 {[%clk 0:01:06]}  Re8 {[%clk 0:00:59]} 27. f5 {[%clk 0:01:04]}  exf5 {[%clk 0:00:59]} 28. Bf4 {[%clk 0:01:00]}  a3 {[%clk 0:00:56]} 29. Bxf5 {[%clk 0:00:48]}  a2 {[%clk 0:00:37]} 30. Ra1 {[%clk 0:00:47]}  Rxe2 {[%clk 0:00:37]} 31. Bxh7 {[%clk 0:00:47]}  Nc4 {[%clk 0:00:35]} 32. h4 {[%clk 0:00:44]}  Be7 {[%clk 0:00:28]} 33. h5 {[%clk 0:00:38]}  Bxc5 {[%clk 0:00:24]} 34. dxc5 {[%clk 0:00:31]}  Rb7 {[%clk 0:00:20]} 35. g6+ {[%clk 0:00:32]}  Kg7 {[%clk 0:00:21]} 36. h6+ {[%clk 0:00:24]}  Kh8 {[%clk 0:00:20]} 37. Rf1 {[%clk 0:00:24]}  Rb1 {[%clk 0:00:20]} 38. Bc1 {[%clk 0:00:20]}  Rxc1 {[%clk 0:00:17]} 39. Rxc1 {[%clk 0:00:15]}  Rb2 {[%clk 0:00:08]} 40. g7+ {[%clk 0:00:16]}  Kxh7 {[%clk 0:00:06]} 41. Rf1 {[%clk 0:00:10]}  Rb1 {[%clk 0:00:07]} 42. Kg2 {[%clk 0:00:03]}  Rxf1 {[%clk 0:00:07]} 43. Kxf1 {[%clk 0:00:03]}  a1=Q+ {[%clk 0:00:07]} 44. Ke2 {[%clk 0:00:04]}  Qxc3 {[%clk 0:00:08]} 45. Kf2 {[%clk 0:00:04]}  Qe3+ {[%clk 0:00:08]} 46. Kg2 {[%clk 0:00:04]}  Nd2 {[%clk 0:00:09]} 47. c6 {[%clk 0:00:05]}  Qf3+ {[%clk 0:00:09]} 48. Kh2 {[%clk 0:00:05]}  Ne4 {[%clk 0:00:10]} 49. c7 {[%clk 0:00:05]}  Qg3+ {[%clk 0:00:09]} 0-1


[Site "https://www.chess.com"]

[Event "Titled Tuesday Blitz January 10 Late 2023"]
[White "Dias, Joao Batista"]
[Black "Barria Zuniga, Daniel"]
[WhiteFideId "2108240"]
[BlackFideId "3400816"]
[WhiteElo "1796"]
[BlackElo "2341"]
[Result "1/2-1/2"]
[Round "11"]
[TimeControl "180+2"]
[Date "2023.01.10"]
[WhiteClock "0:01:03"]
[BlackClock "0:01:06"]

1. e4 {[%clk 0:00:00]}  c5 {[%clk 0:00:00]} 2. Nf3 {[%clk 0:03:00]}  Nc6 {[%clk 0:02:58]} 3. d4 {[%clk 0:03:00]}  cxd4 {[%clk 0:02:57]} 4. Nxd4 {[%clk 0:03:00]}  e6 {[%clk 0:02:58]} 5. Nxc6 {[%clk 0:02:59]}  bxc6 {[%clk 0:02:58]} 6. Bd3 {[%clk 0:02:59]}  Ne7 {[%clk 0:02:58]} 7. O-O {[%clk 0:02:59]}  Ng6 {[%clk 0:02:57]} 8. b3 {[%clk 0:02:59]}  Be7 {[%clk 0:02:57]} 9. Bb2 {[%clk 0:03:00]}  O-O {[%clk 0:02:57]} 10. Nd2 {[%clk 0:03:00]}  a5 {[%clk 0:02:57]} 11. a4 {[%clk 0:03:00]}  f5 {[%clk 0:02:57]} 12. exf5 {[%clk 0:02:59]}  exf5 {[%clk 0:02:55]} 13. Re1 {[%clk 0:02:56]}  d5 {[%clk 0:02:55]} 14. Nf3 {[%clk 0:02:52]}  Bf6 {[%clk 0:02:55]} 15. Bxf6 {[%clk 0:02:42]}  Qxf6 {[%clk 0:02:54]} 16. Qe2 {[%clk 0:02:40]}  Ra7 {[%clk 0:02:55]} 17. Qd2 {[%clk 0:02:38]}  f4 {[%clk 0:02:50]} 18. Rad1 {[%clk 0:02:34]}  Bg4 {[%clk 0:02:40]} 19. Be2 {[%clk 0:02:31]}  Bxf3 {[%clk 0:02:39]} 20. Bxf3 {[%clk 0:02:19]}  Ne5 {[%clk 0:02:37]} 21. Qc3 {[%clk 0:02:19]}  Re8 {[%clk 0:02:29]} 22. Kf1 {[%clk 0:02:10]}  g5 {[%clk 0:02:19]} 23. h3 {[%clk 0:02:07]}  Kg7 {[%clk 0:02:05]} 24. Bh5 {[%clk 0:02:06]}  Ree7 {[%clk 0:02:03]} 25. Bf3 {[%clk 0:02:05]}  Ng6 {[%clk 0:02:03]} 26. Rxe7+ {[%clk 0:01:53]}  Nxe7 {[%clk 0:01:57]} 27. Qxf6+ {[%clk 0:01:48]}  Kxf6 {[%clk 0:01:58]} 28. Ke2 {[%clk 0:01:47]}  Ng6 {[%clk 0:01:57]} 29. Kd2 {[%clk 0:01:46]}  Ne5 {[%clk 0:01:50]} 30. Kc3 {[%clk 0:01:38]}  Ke6 {[%clk 0:01:49]} 31. Bg4+ {[%clk 0:01:35]}  Kd6 {[%clk 0:01:49]} 32. Bf5 {[%clk 0:01:31]}  h6 {[%clk 0:01:49]} 33. f3 {[%clk 0:01:30]}  c5 {[%clk 0:01:47]} 34. Be4 {[%clk 0:01:30]}  d4+ {[%clk 0:01:46]} 35. Kb2 {[%clk 0:01:24]}  Ke7 {[%clk 0:01:45]} 36. c3 {[%clk 0:01:23]}  Rd7 {[%clk 0:01:41]} 37. cxd4 {[%clk 0:01:18]}  Rxd4 {[%clk 0:01:39]} 38. Rxd4 {[%clk 0:01:18]}  cxd4 {[%clk 0:01:36]} 39. Ka3 {[%clk 0:01:17]}  d3 {[%clk 0:01:37]} 40. Kb2 {[%clk 0:01:14]}  Kd6 {[%clk 0:01:34]} 41. Kc3 {[%clk 0:01:13]}  Kc5 {[%clk 0:01:21]} 42. Bxd3 {[%clk 0:01:13]}  Nc6 {[%clk 0:01:21]} 43. Bf5 {[%clk 0:01:13]}  Nb4 {[%clk 0:01:17]} 44. Be6 {[%clk 0:01:09]}  Kd6 {[%clk 0:01:14]} 45. Bf7 {[%clk 0:01:06]}  Kc5 {[%clk 0:01:07]} 46. Be6 {[%clk 0:01:03]}  Kd6 {[%clk 0:01:07]} 47. Bf7 {[%clk 0:01:03]}  Kc5 {[%clk 0:01:06]} 48. Be6 {[%clk 0:01:03]} 1/2-1/2


[Site "https://www.chess.com"]

[Event "Titled Tuesday Blitz January 10 Late 2023"]
[White "Gatterer, Florian"]
[Black "Souza, Gustavo Horokoski De"]
[WhiteFideId "811688"]
[BlackFideId "2146584"]
[WhiteElo "2170"]
[BlackElo "1943"]
[Result "1-0"]
[Round "11"]
[TimeControl "180+2"]
[Date "2023.01.10"]
[WhiteClock "0:02:07"]
[BlackClock "0:02:16"]

1. d4 {[%clk 0:00:00]}  Nf6 {[%clk 0:00:00]} 2. Nf3 {[%clk 0:03:00]}  g6 {[%clk 0:02:59]} 3. g3 {[%clk 0:03:01]}  Bg7 {[%clk 0:02:59]} 4. Bg2 {[%clk 0:03:01]}  O-O {[%clk 0:02:59]} 5. O-O {[%clk 0:03:02]}  d5 {[%clk 0:03:00]} 6. c3 {[%clk 0:03:03]}  c6 {[%clk 0:03:00]} 7. Bf4 {[%clk 0:03:02]}  Nh5 {[%clk 0:02:56]} 8. Be3 {[%clk 0:03:01]}  Nd7 {[%clk 0:02:53]} 9. Nbd2 {[%clk 0:02:57]}  Nhf6 {[%clk 0:02:47]} 10. h3 {[%clk 0:02:54]}  Re8 {[%clk 0:02:47]} 11. Re1 {[%clk 0:02:53]}  e5 {[%clk 0:02:43]} 12. Nxe5 {[%clk 0:02:48]}  Nxe5 {[%clk 0:02:38]} 13. dxe5 {[%clk 0:02:47]}  Rxe5 {[%clk 0:02:38]} 14. Bf4 {[%clk 0:02:48]}  Re7 {[%clk 0:02:36]} 15. e4 {[%clk 0:02:46]}  Nxe4 {[%clk 0:02:35]} 16. Nxe4 {[%clk 0:02:46]}  Bxh3 {[%clk 0:02:31]} 17. Bxh3 {[%clk 0:02:46]}  dxe4 {[%clk 0:02:17]} 18. Qxd8+ {[%clk 0:02:16]}  Rxd8 {[%clk 0:02:15]} 19. Rad1 {[%clk 0:02:14]}  Rde8 {[%clk 0:02:16]} 20. Bd6 {[%clk 0:02:07]} 1-0


[Site "https://www.chess.com"]

[Event "Titled Tuesday Blitz January 10 Late 2023"]
[White "Delaere, Jeroen"]
[Black "Ali, Kairi G."]
[WhiteFideId "204129"]
[BlackFideId "9206655"]
[WhiteElo "2104"]
[BlackElo "1802"]
[Result "0-1"]
[Round "11"]
[TimeControl "180+2"]
[Date "2023.01.10"]
[WhiteClock "0:00:06"]
[BlackClock "0:01:09"]

1. d4 {[%clk 0:00:00]}  c5 {[%clk 0:00:00]} 2. d5 {[%clk 0:03:00]}  d6 {[%clk 0:03:00]} 3. Nc3 {[%clk 0:03:00]}  g6 {[%clk 0:02:57]} 4. e4 {[%clk 0:02:57]}  Bg7 {[%clk 0:02:56]} 5. Bb5+ {[%clk 0:02:56]}  Bd7 {[%clk 0:02:56]} 6. a4 {[%clk 0:02:54]}  a6 {[%clk 0:02:55]} 7. Be2 {[%clk 0:02:52]}  Nf6 {[%clk 0:02:55]} 8. Nf3 {[%clk 0:02:50]}  O-O {[%clk 0:02:54]} 9. O-O {[%clk 0:02:49]}  Qa5 {[%clk 0:02:52]} 10. Bd2 {[%clk 0:02:48]}  Qb6 {[%clk 0:02:49]} 11. a5 {[%clk 0:02:39]}  Qxb2 {[%clk 0:02:49]} 12. Rb1 {[%clk 0:02:37]}  Qa3 {[%clk 0:02:45]} 13. Rxb7 {[%clk 0:02:12]}  Qxa5 {[%clk 0:02:38]} 14. e5 {[%clk 0:02:01]}  dxe5 {[%clk 0:02:38]} 15. Nxe5 {[%clk 0:01:54]}  Qd8 {[%clk 0:02:32]} 16. Bf3 {[%clk 0:01:52]}  Ne8 {[%clk 0:02:30]} 17. Re1 {[%clk 0:01:46]}  Nd6 {[%clk 0:02:27]} 18. Rb1 {[%clk 0:01:30]}  Bf5 {[%clk 0:02:21]} 19. Nc6 {[%clk 0:01:23]}  Nxc6 {[%clk 0:02:15]} 20. dxc6 {[%clk 0:01:16]}  Rc8 {[%clk 0:02:15]} 21. Nd5 {[%clk 0:01:14]}  Be6 {[%clk 0:02:03]} 22. c7 {[%clk 0:01:11]}  Qe8 {[%clk 0:01:58]} 23. Ba5 {[%clk 0:01:11]}  Nc4 {[%clk 0:01:55]} 24. Bc3 {[%clk 0:00:59]}  Bxd5 {[%clk 0:01:49]} 25. Bxg7 {[%clk 0:00:18]}  Bxf3 {[%clk 0:01:46]} 26. Qxf3 {[%clk 0:00:16]}  Kxg7 {[%clk 0:01:36]} 27. Qc3+ {[%clk 0:00:15]}  f6 {[%clk 0:01:36]} 28. Qxc4 {[%clk 0:00:14]}  Rxc7 {[%clk 0:01:33]} 29. Qxa6 {[%clk 0:00:13]}  Qc8 {[%clk 0:01:33]} 30. Qc4 {[%clk 0:00:11]}  Qf5 {[%clk 0:01:16]} 31. Re6 {[%clk 0:00:07]}  Rd8 {[%clk 0:01:12]} 32. Rbe1 {[%clk 0:00:06]}  Rdd7 {[%clk 0:01:09]} 0-1


[Site "https://www.chess.com"]

[Event "Titled Tuesday Blitz January 10 Late 2023"]
[White "Soyunlu, Narmin"]
[Black "Rose, Felix"]
[WhiteFideId "13400843"]
[BlackFideId "5105722"]
[WhiteElo "2013"]
[BlackElo "2091"]
[Result "0-1"]
[Round "11"]
[TimeControl "180+2"]
[Date "2023.01.10"]
[WhiteClock "0:00:03"]
[BlackClock "0:01:02"]

1. d4 {[%clk 0:00:00]}  Nf6 {[%clk 0:00:00]} 2. c4 {[%clk 0:03:00]}  e6 {[%clk 0:02:54]} 3. g3 {[%clk 0:03:01]}  d5 {[%clk 0:02:54]} 4. Bg2 {[%clk 0:03:00]}  dxc4 {[%clk 0:02:54]} 5. Nf3 {[%clk 0:03:00]}  a6 {[%clk 0:02:54]} 6. a4 {[%clk 0:02:59]}  Nc6 {[%clk 0:02:54]} 7. O-O {[%clk 0:02:52]}  Rb8 {[%clk 0:02:55]} 8. Bg5 {[%clk 0:02:52]}  Be7 {[%clk 0:02:55]} 9. Nc3 {[%clk 0:02:26]}  O-O {[%clk 0:02:49]} 10. a5 {[%clk 0:00:55]}  h6 {[%clk 0:02:48]} 11. Be3 {[%clk 0:00:54]}  Bb4 {[%clk 0:02:37]} 12. Qc2 {[%clk 0:00:53]}  Nxa5 {[%clk 0:02:35]} 13. Ra4 {[%clk 0:00:50]}  Bxc3 {[%clk 0:02:25]} 14. Qxc3 {[%clk 0:00:21]}  b6 {[%clk 0:02:04]} 15. Rxc4 {[%clk 0:00:21]}  Nxc4 {[%clk 0:01:55]} 16. Qxc4 {[%clk 0:00:20]}  Bb7 {[%clk 0:01:54]} 17. Rc1 {[%clk 0:00:19]}  Nd5 {[%clk 0:01:54]} 18. Ne5 {[%clk 0:00:18]}  Nxe3 {[%clk 0:01:37]} 19. fxe3 {[%clk 0:00:09]}  Bxg2 {[%clk 0:01:35]} 20. Kxg2 {[%clk 0:00:10]}  c5 {[%clk 0:01:34]} 21. dxc5 {[%clk 0:00:10]}  bxc5 {[%clk 0:01:32]} 22. Nc6 {[%clk 0:00:09]}  Qc7 {[%clk 0:01:30]} 23. Nxb8 {[%clk 0:00:09]}  Qxb8 {[%clk 0:01:26]} 24. Qxc5 {[%clk 0:00:09]}  Qxb2 {[%clk 0:01:27]} 25. Qc2 {[%clk 0:00:09]}  Qb7+ {[%clk 0:01:27]} 26. Kg1 {[%clk 0:00:07]}  Qb6 {[%clk 0:01:26]} 27. Qc5 {[%clk 0:00:06]}  Qb2 {[%clk 0:01:25]} 28. Rc2 {[%clk 0:00:06]}  Qb1+ {[%clk 0:01:25]} 29. Kg2 {[%clk 0:00:06]}  Qb7+ {[%clk 0:01:20]} 30. Qc6 {[%clk 0:00:06]}  Qb3 {[%clk 0:01:19]} 31. Rc3 {[%clk 0:00:06]}  Qd1 {[%clk 0:01:20]} 32. Rc2 {[%clk 0:00:05]}  a5 {[%clk 0:01:20]} 33. Qc3 {[%clk 0:00:05]}  a4 {[%clk 0:01:19]} 34. Rd2 {[%clk 0:00:04]}  Qb1 {[%clk 0:01:17]} 35. Rb2 {[%clk 0:00:04]}  Qa1 {[%clk 0:01:15]} 36. Qb4 {[%clk 0:00:03]}  a3 {[%clk 0:01:12]} 37. Rb1 {[%clk 0:00:02]}  Qa2 {[%clk 0:01:08]} 38. Kf2 {[%clk 0:00:02]}  Ra8 {[%clk 0:01:07]} 39. Qe1 {[%clk 0:00:03]}  Qd5 {[%clk 0:01:07]} 40. Ra1 {[%clk 0:00:02]}  a2 {[%clk 0:01:05]} 41. Qc1 {[%clk 0:00:03]}  h5 {[%clk 0:01:05]} 42. Qb2 {[%clk 0:00:02]}  g6 {[%clk 0:01:04]} 43. e4 {[%clk 0:00:03]}  Qxe4 {[%clk 0:01:04]} 44. Rxa2 {[%clk 0:00:03]}  Qf5+ {[%clk 0:01:02]} 45. Kg2 {[%clk 0:00:03]}  Qd5+ {[%clk 0:01:02]} 46. Kf2 {[%clk 0:00:03]}  Rxa2 {[%clk 0:01:02]} 0-1


[Site "https://www.chess.com"]